bitfinex-derivatives/quotes_ETHF0:USTF0_20250404
["timestamp","ask_amount","ask_price","bid_price","bid_amount"]
[1743730137536,1.11164331,1813.3,1813.2,0.6913]
[1743730138337,0.00826331,1813.3,1813.2,4.29474]
[1743730138740,1.11164331,1813.3,1813.2,4.29474]
[1743730139139,1.11164331,1813.3,1813.2,6.3991]
[1743730139437,1.11164331,1813.3,1813.2,3.1913]
[1743730139627,1.11164331,1813.3,1813.2,4.29474]
[1743730140238,1.11164331,1813.3,1813.2,1.79474]
[1743730140437,1.11164331,1813.3,1813.2,0.6913]
[1743730140842,1.11164331,1813.3,1813.2,4.29474]
[1743730140843,0.00826331,1813.3,1813.2,4.29474]
[1743730141044,3.765,1813.7,1813.2,10.90898604]
[1743730141340,1.10317,1813.7,1813.6,1.10318]
[1743730141644,3.774,1813.8,1813.4,3.2078]
[1743730141939,1.10315,1813.7,1813.6,1.10316]
[1743730142233,1.10315,1813.7,1813.6,1.10315]
[1743730142641,1.10315,1813.7,1813.5,4.11410935]
[1743730142642,1.11138331,1813.8,1813.7,1.10313]
[1743730142839,0.00826331,1813.8,1813.7,1.10313]
[1743730144439,0.00826331,1813.8,1813.7,1.82753]
[1743730144841,4.87892,1814.1,1814.0,1.10292]
[1743730146040,61.36809331,1814.2,1814.1,1.10289]
[1743730146242,1.10289,1814.1,1814.0,4.3107]
[1743730146545,1.10289,1814.1,1814.0,3.2078]
[1743730147245,1.10289,1814.1,1814.0,4.31075]
[1743730147647,66.53864331,1814.2,1814.1,1.10289]
[1743730147945,64.03526331,1814.2,1814.1,1.10289]
[1743730149252,65.13809331,1814.2,1814.1,1.10289]
[1743730149646,1.10289,1814.1,1814.0,4.31071]
[1743730150050,65.13814331,1814.2,1814.1,1.10289]
[1743730150248,65.13814331,1814.2,1814.1,2.50279]
[1743730150445,64.03526331,1814.2,1814.1,2.50279]
[1743730151343,65.12909331,1814.2,1814.1,2.50279]
[1743730152457,65.12909331,1814.2,1814.1,1.3999]
[1743730152951,1.10307,1813.9,1813.7,4.13084604]
[1743730153154,1.10301,1813.9,1813.8,1.3894]
[1743730153549,1.10301,1813.9,1813.8,2.49245]
[1743730154050,1.103,1814.0,1813.9,1.10301]
[1743730154255,1.103,1814.0,1813.9,2.49241]
[1743730154454,1.103,1814.0,1813.9,1.3894]
[1743730154649,1.103,1814.0,1813.9,2.49241]
[1743730155853,1.103,1814.0,1813.9,1.3894]
[1743730157159,1.103,1814.0,1813.9,2.49241]
[1743730157451,1.5087,1814.1,1813.7,0.7244]
[1743730157650,1.10319,1813.6,1813.5,0.00826331]
[1743730157854,4.85419,1813.6,1813.5,1.11151331]
[1743730158055,3.751,1813.6,1813.5,1.11151331]
[1743730158256,3.2078,1814.0,1813.5,3.21606331]
[1743730158459,4.85701,1814.0,1813.9,1.10301]
[1743730158861,4.85695,1814.0,1813.9,1.10301]
[1743730159357,4.85695,1814.0,1813.9,2.48121]
[1743730160361,1.10295,1814.0,1813.9,2.48121]
[1743730163962,1.10293,1814.1,1814.0,1.10295]
[1743730166860,1.11113331,1814.2,1814.1,1.10289]
[1743730170464,1.10289,1814.1,1814.0,2.56611]
[1743730170663,2.51179,1814.1,1814.0,2.56611]
[1743730173864,1.10289,1814.1,1814.0,2.56611]
[1743730178472,1.10289,1814.1,1814.0,1.4632]
[1743730178872,2.55839,1814.1,1814.0,1.4632]
[1743730179076,2.55839,1814.1,1814.0,2.56615]
[1743730179373,1.10289,1814.1,1814.0,2.56615]
[1743730180678,1.10289,1814.1,1814.0,1.4632]
[1743730181375,1.10289,1814.1,1814.0,2.56615]
[1743730182878,1.10289,1814.1,1814.0,1.4632]
[1743730184174,1.10289,1814.1,1814.0,2.56615]
[1743730190288,1.10289,1814.1,1814.0,1.4632]
[1743730190481,1.10301,1813.9,1813.8,1.4695]
[1743730190684,1.10307,1813.8,1813.7,4.90084604]
[1743730190986,1.10307,1813.8,1813.7,6.00397604]
[1743730192079,4.79307,1813.9,1813.8,1.10307]
[1743730192279,1.10298,1814.0,1813.9,1.10301]
[1743730192486,3.695,1814.1,1814.0,1.10295]
[1743730192487,4.79794,1814.1,1814.0,1.10295]
[1743730192685,4.79794,1814.1,1814.0,3.28595]
[1743730193288,4.79794,1814.1,1814.0,2.183]
[1743730193490,6.32034,1814.1,1814.0,2.183]
[1743730193687,6.32034,1814.1,1814.0,3.28595]
[1743730194493,4.79794,1814.1,1814.0,3.28595]
[1743730195877,4.79794,1814.1,1814.0,2.183]
[1743730196187,4.79794,1814.1,1814.0,3.28595]
[1743730196689,4.79794,1814.1,1814.0,2.183]
[1743730196988,6.29164,1814.1,1814.0,1.4706]
[1743730198893,6.29164,1814.1,1814.0,2.57355]
[1743730199387,6.29164,1814.1,1814.0,1.4706]
[1743730200792,1.10295,1814.0,1813.9,0.6913]
[1743730200987,1.10301,1813.9,1813.8,0.6876]
[1743730201182,1.10301,1813.9,1813.8,2.16]
[1743730201395,2.53441,1813.9,1813.8,3.26307]
[1743730201587,1.10301,1813.9,1813.8,3.26307]
[1743730201789,1.10301,1814.0,1813.9,1.10296]
[1743730202496,1.10301,1813.9,1813.8,1.79062]
[1743730203396,1.10301,1813.9,1813.8,0.6876]
[1743730203791,1.10313,1813.7,1813.6,1.85005]
[1743730203990,1.10313,1813.7,1813.6,2.56795]
[1743730204689,1.10299,1814.0,1813.9,1.10294]
[1743730205589,1.10295,1814.0,1813.9,1.10294]
[1743730206396,4.79696,1814.1,1814.0,1.10295]
[1743730206794,4.79696,1814.1,1813.8,5.96544]
[1743730206995,1.1031,1813.9,1813.8,1.10302]
[1743730207393,1.10313,1813.7,1813.6,5.22748604]
[1743730209399,1.10311,1813.8,1813.7,1.10307]
[1743730210402,1.10312,1813.8,1813.7,1.10307]
[1743730211096,2.52232,1813.8,1813.7,1.10307]
[1743730211802,6.20832,1813.8,1813.7,1.10307]
[1743730212001,3.686,1813.8,1813.7,4.31087]
[1743730212196,1.10294,1814.1,1814.0,1.10289]
[1743730212904,1.10294,1814.1,1814.0,1.80189]
[1743730213095,1.10294,1814.1,1814.0,0.699]
[1743730213601,2.47774,1814.1,1814.0,0.699]
[1743730213993,1.10295,1814.0,1813.9,4.31076]
[1743730214192,2.47775,1814.0,1813.9,1.10296]
[1743730214392,2.47775,1814.0,1813.8,0.699]
[1743730214393,1.10319,1813.6,1813.5,4.31929331]
[1743730214598,1.10319,1813.6,1813.5,5.01729331]
[1743730214790,4.79918,1813.7,1813.6,1.10319]
[1743730214994,4.80001,1813.9,1813.8,1.10307]
[1743730215194,3.697,1813.9,1813.8,1.10307]
[1743730215397,4.80001,1813.9,1813.8,1.10307]
[1743730217303,1.10319,1813.6,1813.5,5.01725331]
[1743730218397,1.10319,1813.7,1813.6,1.10314]
[1743730218595,1.10319,1813.7,1813.6,1.85234]
[1743730220104,1.10319,1813.7,1813.6,3.26284]
[1743730221799,1.10319,1813.7,1813.6,2.1597]
[1743730221996,1.10319,1813.6,1813.5,0.00826331]
[1743730222306,6.20019,1813.6,1813.5,1e-08]
[1743730222608,7.04445924,1813.6,1813.5,1e-08]
[1743730222902,9.54446179,1813.6,1813.5,1e-08]
[1743730224204,9.54444833,1813.6,1813.5,1e-08]
[1743730228313,1.10356,1813.0,1812.9,1.5117]
[1743730228611,1.10356,1813.0,1812.5,3.2078]
[1743730228612,1.1038,1812.6,1812.5,3.2078]
[1743730228911,1.1038,1812.6,1812.5,5.01096]
[1743730229104,3.693,1812.7,1812.5,3.9071]
[1743730229304,3.693,1812.7,1812.6,1.1038]
[1743730229711,0.00826331,1812.8,1812.7,1.10374]
[1743730230012,0.00826331,1812.8,1812.7,5.82324]
[1743730230211,0.00826331,1812.8,1812.7,8.32324]
[1743730230810,1.11194331,1812.8,1812.7,5.82324]
[1743730231009,1.11194331,1812.8,1812.7,2.61544]
[1743730231204,1.11194331,1812.8,1812.7,5.82324]
[1743730231205,0.00826331,1812.8,1812.7,5.82324]
[1743730231916,1.11194331,1812.8,1812.7,5.82324]
[1743730233415,1.11194331,1812.8,1812.7,4.7195]
[1743730234020,1.11194331,1812.8,1812.7,1.5117]
[1743730234212,2.55344331,1812.8,1812.7,1.5117]
[1743730234604,1.1038,1812.6,1812.5,0.6993]
[1743730234807,1.10386,1812.5,1812.4,0.69676331]
[1743730235711,1.10386,1812.5,1812.4,3.28558331]
[1743730236016,8.01166,1812.6,1812.5,1.10386]
[1743730236209,8.01166,1812.6,1812.5,1.4849]
[1743730237615,0.00826331,1812.8,1812.5,4.6927]
[1743730237923,0.00826331,1812.8,1812.7,1.10374]
[1743730238418,0.00826331,1812.8,1812.7,4.97984]
[1743730238621,0.00826331,1812.8,1812.7,8.18764]
[1743730240620,2.75861,1813.2,1813.0,1.10351]
[1743730240823,4.81344,1813.2,1813.1,2.1861]
[1743730241518,1.10344,1813.2,1813.1,3.2896]
[1743730241721,4.81244,1813.2,1813.1,3.2896]
[1743730242019,4.81244,1813.2,1813.1,2.1861]
[1743730242524,4.81244,1813.2,1813.1,3.2896]
[1743730243024,4.31946331,1813.3,1813.2,1.10344]
[1743730243221,0.00826331,1813.3,1813.2,5.74214]
[1743730243922,1.11164331,1813.3,1813.2,6.44964]
[1743730244926,1.11164331,1813.3,1813.2,2.1384]
[1743730245122,1.11164331,1813.3,1813.2,3.24184]
[1743730246921,1.11164331,1813.3,1813.2,1.4309]
[1743730247129,1.1035,1813.1,1813.0,4.31136]
[1743730247320,4.8105,1813.1,1813.0,4.31136]
[1743730247720,4.8105,1813.1,1813.0,5.78316]
[1743730247923,4.8105,1813.1,1813.0,1.4718]
[1743730248114,4.8105,1813.1,1813.0,2.57536]
[1743730248520,4.8105,1813.1,1813.0,1.4718]
[1743730248725,1.10356,1813.0,1812.9,0.7112]
[1743730249221,1.10356,1813.0,1812.9,2.183]
[1743730249422,2.62296,1813.0,1812.9,2.183]
[1743730250615,2.62296,1813.0,1812.9,1.4718]
[1743730254529,1.10368,1812.8,1812.7,1.4637]
[1743730254724,1.1038,1812.6,1812.5,1.10382]
[1743730254925,1.1038,1812.6,1812.5,0.754]
[1743730256032,1.1038,1812.6,1812.5,3.29296]
[1743730256830,1.1038,1812.6,1812.5,2.1891]
[1743730257026,1.1038,1812.6,1812.5,3.29296]
[1743730257630,1.1038,1812.6,1812.5,2.1891]
[1743730257831,1.1038,1812.6,1812.5,3.29296]
[1743730258031,3.2078,1813.1,1812.6,2.75937]
[1743730258330,0.00826331,1813.3,1813.2,1.10344]
[1743730258718,0.00826331,1813.3,1813.2,3.28134]
[1743730258927,0.00826331,1813.3,1813.2,5.78134]
[1743730259118,64.016,1813.7,1813.3,2.75844]
[1743730259325,4.85012,1813.8,1813.7,1.1031]
[1743730259827,4.85012,1813.8,1813.7,3.3273]
[1743730260334,4.85012,1813.8,1813.7,2.2242]
[1743730261532,4.85012,1813.8,1813.7,3.32733]
[1743730263527,4.85012,1813.8,1813.7,2.2242]
[1743730264131,4.85012,1813.8,1813.7,3.32733]
[1743730266732,1.10313,1813.7,1813.6,3.21606331]
[1743730266942,1.10348,1813.2,1813.1,1.10347]
[1743730267123,1.10356,1813.0,1812.9,1.4967]
[1743730267427,8.04836,1813.0,1812.9,1.4967]
[1743730268140,8.04836,1813.0,1812.9,2.60032]
[1743730268334,3.737,1813.0,1812.9,2.60032]
[1743730269426,4.84056,1813.0,1812.9,2.60032]
[1743730271633,3.737,1813.0,1812.9,2.60032]
[1743730271829,8.05018,1813.3,1813.2,1.10344]
[1743730272026,4.84238,1813.3,1813.2,1.10344]
[1743730272729,4.84238,1813.3,1813.2,0.7226]
[1743730273228,4.84238,1813.3,1813.0,1.10351]
[1743730273229,1.1035,1813.1,1813.0,1.10351]
[1743730273830,1.1035,1813.1,1813.0,2.51411]
[1743730275434,1.4496,1813.2,1813.1,1.1035]
[1743730275738,1.1035,1813.1,1813.0,2.51411]
[1743730277138,1.1035,1813.1,1813.0,1.4106]
[1743730277338,4.3113,1813.1,1813.0,2.51416]
[1743730278643,4.3113,1813.1,1813.0,1.4106]
[1743730278840,4.3113,1813.1,1813.0,2.51416]
[1743730279034,4.3113,1813.1,1813.0,1.4106]
[1743730279635,1.10362,1812.9,1812.8,0.00826331]
[1743730279940,4.31142,1812.9,1812.8,1.42956331]
[1743730280338,8.31912,1812.9,1812.8,0.00826331]
[1743730280842,2.61132,1812.9,1812.8,0.00826331]
[1743730281037,5.81912,1812.9,1812.8,0.00826331]
[1743730283741,8.31912,1812.9,1812.8,0.00826331]
[1743730283936,8.41083368,1812.9,1812.8,0.00826331]
[1743730285841,5.81912,1812.9,1812.8,0.00826331]
[1743730287944,4.31142,1812.9,1812.8,1.48466331]
[1743730288137,8.03942,1812.9,1812.8,2.24166331]
[1743730288745,4.31142,1812.9,1812.8,3.34534331]
[1743730289043,8.04142,1812.9,1812.8,3.34534331]
[1743730289242,8.04142,1812.9,1812.8,2.24166331]
[1743730289634,8.04142,1812.9,1812.8,3.34534331]
[1743730289837,8.04142,1812.9,1812.8,2.24166331]
[1743730290146,8.04142,1812.9,1812.8,3.34534331]
[1743730292046,4.31133,1813.1,1813.0,1.10351]
[1743730292234,8.03333,1813.1,1813.0,1.10351]
[1743730295051,4.82553,1813.1,1813.0,1.10351]
[1743730295238,3.2078,1813.3,1813.0,1.10351]
[1743730295547,8.03719,1813.3,1813.2,1.10344]
[1743730296048,8.03719,1813.3,1813.2,2.2183]
[1743730296351,8.03719,1813.3,1813.2,3.32174]
[1743730296849,4.31119,1813.3,1813.2,3.32174]
[1743730297047,8.03519,1813.3,1813.2,3.32174]
[1743730297448,3.2078,1813.3,1813.2,3.32174]
[1743730297644,63.4878,1813.6,1813.5,1.10325]
[1743730297847,65.10819,1813.6,1813.5,1.10325]
[1743730298039,1.10331,1813.5,1813.4,1.4788]
[1743730298350,5.82791,1813.5,1813.4,2.58211]
[1743730298749,5.82791,1813.5,1813.4,1.4788]
[1743730299444,5.82791,1813.5,1813.4,2.58211]
[1743730299951,5.82791,1813.5,1813.4,1.4788]
[1743730300253,5.82791,1813.5,1813.4,2.58211]
[1743730300456,4.31111,1813.5,1813.4,1.4788]
[1743730301146,5.76971,1813.5,1813.4,1.4788]
[1743730301346,4.31111,1813.5,1813.4,1.4788]
[1743730302453,4.31111,1813.5,1813.4,2.58211]
[1743730302953,65.10825,1813.6,1813.5,1.10325]
[1743730303149,65.10825,1813.6,1813.5,3.38315]
[1743730303548,65.10825,1813.6,1813.5,2.2799]
[1743730304345,66.63215,1813.6,1813.5,2.2799]
[1743730307250,66.63215,1813.6,1813.5,1.5239]
[1743730307461,1.10338,1813.3,1813.2,1.409]
[1743730307746,4.81038,1813.3,1813.2,4.01914]
[1743730309055,8.01818,1813.3,1813.2,2.9157]
[1743730310554,4.81038,1813.3,1813.2,4.01914]
[1743730310858,8.01818,1813.3,1813.2,2.9157]
[1743730311657,8.01818,1813.3,1813.2,4.01914]
[1743730311857,4.81038,1813.3,1813.2,4.01914]
[1743730314266,1.10338,1813.3,1813.2,4.01914]
[1743730314475,4.79738,1813.3,1813.2,4.01914]
[1743730316871,3.692,1813.4,1813.3,1.10338]
[1743730317077,3.692,1813.4,1813.3,2.62508]
[1743730317271,4.79531,1813.4,1813.3,2.62508]
[1743730317481,1.10331,1813.4,1813.3,2.62508]
[1743730317773,4.79531,1813.5,1813.4,1.10331]
[1743730317978,4.79531,1813.5,1813.4,2.62501]
[1743730321781,1.10344,1813.2,1813.1,5.97]
[1743730321980,3.689,1813.2,1813.1,2.56968]
[1743730322169,4.79244,1813.2,1813.1,2.56968]
[1743730322375,3.689,1813.2,1813.1,2.56968]
[1743730324380,1.1034,1813.3,1813.2,1.10344]
[1743730324580,1.1034,1813.3,1813.2,2.53324]
[1743730325280,1.1034,1813.3,1813.2,1.4298]
[1743730325281,4.3112,1813.3,1813.2,1.4298]
[1743730325579,1.10356,1813.0,1812.9,8.5073]
[1743730326480,1.10356,1813.0,1812.9,8.50732]
[1743730326982,1.10356,1813.0,1812.9,9.94642]
[1743730327783,1.10356,1813.0,1812.9,7.4091]
[1743730328082,1.10356,1813.0,1812.8,0.00826331]
[1743730328083,1.10362,1812.9,1812.8,0.00826331]
[1743730328282,5.03782,1812.9,1812.8,0.00826331]
[1743730328582,6.48202,1812.9,1812.8,0.00826331]
[1743730329676,6.48202,1812.9,1812.8,3.31e-06]
[1743730329677,8.98202,1812.9,1812.8,3.31e-06]
[1743730329978,9.0738096,1812.9,1812.8,3.31e-06]
[1743730330375,9.52017267,1812.9,1812.8,3.31e-06]
[1743730330987,6.57381212,1812.9,1812.8,3.31e-06]
[1743730331281,6.48202,1812.9,1812.8,3.31e-06]
[1743730331481,4.31142,1812.9,1812.8,3.31e-06]
[1743730331786,4.31142,1812.9,1812.8,1.10368331]
[1743730332187,3.2078,1812.9,1812.8,1.10368331]
[1743730332487,1.10357,1813.0,1812.9,1.10362]
[1743730332683,1.10357,1813.0,1812.9,2.58752]
[1743730334289,1.10357,1813.0,1812.9,2.245]
[1743730334681,2.58437,1813.0,1812.9,1.4839]
[1743730335189,1.10357,1813.0,1812.9,2.58752]
[1743730335996,8.00634,1813.1,1813.0,1.10356]
[1743730336287,6.9028,1813.1,1813.0,3.97616]
[1743730336988,1.10356,1813.0,1812.9,5.97]
[1743730337287,2.58436,1813.0,1812.9,5.97]
[1743730337490,3.32996,1813.0,1812.9,5.97]
[1743730339396,1.10362,1812.9,1812.8,3.31e-06]
[1743730339692,6.64334411,1812.9,1812.8,3.31e-06]
[1743730339893,9.14334411,1812.9,1812.8,3.31e-06]
[1743730340191,6.64334411,1812.9,1812.8,3.31e-06]
[1743730340495,5.05142,1812.9,1812.8,3.31e-06]
[1743730340790,5.05142,1812.9,1812.8,1.46130331]
[1743730341291,6.43492,1812.9,1812.8,3.31e-06]
[1743730342091,6.43492,1812.9,1812.8,1.46130331]
[1743730342685,10.14792,1812.9,1812.8,1.46130331]
[1743730344992,8.76442,1812.9,1812.8,1.46130331]
[1743730345195,1.10362,1812.9,1812.8,2.56498331]
[1743730345592,4.81061,1813.0,1812.9,1.10362]
[1743730345801,4.81061,1813.0,1812.9,4.01952]
[1743730347798,4.81061,1813.0,1812.9,2.9159]
[1743730348002,4.81061,1813.0,1812.9,4.01952]
[1743730350102,4.81061,1813.0,1812.9,2.9159]
[1743730350303,4.81061,1813.0,1812.9,4.01952]
[1743730350999,4.81061,1813.0,1812.8,3.31e-06]
[1743730351000,1.10362,1812.9,1812.8,3.31e-06]
[1743730351298,1.10362,1812.9,1812.5,2.9252]
[1743730351299,1.1038,1812.6,1812.5,2.9252]
[1743730351903,1.1038,1812.6,1812.5,4.02906]
[1743730353808,1.1038,1812.6,1812.5,2.9252]
[1743730354420,1.1038,1812.6,1812.5,4.02906]
[1743730355113,1.1038,1812.6,1812.5,2.9252]
[1743730355309,1.1038,1812.6,1812.5,4.02906]
[1743730357811,4.82605331,1812.7,1812.6,1.1038]
[1743730358106,1.11205331,1812.7,1812.6,2.5711]
[1743730358310,1.11200331,1812.7,1812.6,2.5711]
[1743730358510,0.00826331,1812.7,1812.6,2.5711]
[1743730358708,0.00826331,1812.7,1812.6,5.0711]
[1743730364915,1.11200331,1812.7,1812.6,5.0711]
[1743730365517,0.00826331,1812.7,1812.6,5.0711]
[1743730365813,1.11200331,1812.7,1812.6,1.4673]
[1743730366013,4.31980331,1812.7,1812.6,1.4673]
[1743730366311,1.10386,1812.5,1812.4,0.00826331]
[1743730366517,4.31166,1812.5,1812.4,1.52506331]
[1743730368424,5.79846,1812.5,1812.4,1.52506331]
[1743730369425,8.29846,1812.5,1812.4,3.31e-06]
[1743730370020,1.10435,1811.7,1811.6,2.148]
[1743730371017,4.31215,1811.7,1811.6,2.148]
[1743730372118,4.31215,1811.7,1811.6,1.435]
[1743730372317,4.31215,1811.7,1811.3,6.7148]
[1743730372318,1.10451,1811.5,1811.3,7.426]
[1743730372522,3.703,1811.6,1811.5,1.10447]
[1743730372924,4.81567331,1811.6,1811.5,1.10447]
[1743730374417,1.10447,1811.5,1811.4,2.51689]
[1743730375421,4.81572331,1811.6,1811.5,1.10447]
[1743730375626,4.81572331,1811.6,1811.5,2.53487]
[1743730375925,4.81572331,1811.6,1811.5,1.4304]
[1743730376416,1.10447,1811.5,1811.4,1.10448]
[1743730376614,1.10453,1811.4,1811.3,2.8864]
[1743730376813,1.10453,1811.4,1811.3,3.99099]
[1743730377622,3.26802,1811.5,1811.4,1.10453]
[1743730377830,3.26802,1811.5,1811.4,1.4686]
[1743730378327,3.26802,1811.5,1811.4,2.57313]
[1743730378527,3.26802,1811.5,1811.4,1.4686]
[1743730379036,3.26802,1811.5,1811.4,2.57313]
[1743730379325,3.26802,1811.5,1811.4,1.4686]
[1743730379733,3.26802,1811.5,1811.4,2.57313]
[1743730380023,1.10452,1811.5,1811.4,2.57313]
[1743730380426,1.10452,1811.5,1811.4,1.4686]
[1743730381029,1.10452,1811.5,1811.4,2.57313]
[1743730383122,3.71126331,1811.6,1811.5,1.10447]
[1743730383123,4.81572331,1811.6,1811.5,1.10447]
[1743730383326,4.81572331,1811.6,1811.5,2.55677]
[1743730383625,4.81572331,1811.6,1811.5,1.4523]
[1743730383827,0.00826331,1811.6,1811.5,2.55677]
[1743730387031,1e-08,1811.6,1811.5,5.05677]
[1743730389039,1e-08,1811.6,1811.5,2.55677]
[1743730389235,1.10441001,1811.6,1811.5,1.4523]
[1743730389434,1.10447,1811.5,1811.4,0.00826331]
[1743730389631,2.55057,1811.5,1811.4,1.11275331]
[1743730389935,1.10447,1811.5,1811.4,1.11275331]
[1743730390235,1.10447,1811.5,1811.4,2.54815331]
[1743730390630,2.55056001,1811.6,1811.5,1.10447]
[1743730390837,1.10447,1811.5,1811.4,1.11274331]
[1743730392528,4.31227,1811.5,1811.4,0.00826331]
[1743730393335,6.81227,1811.5,1811.4,1e-08]
[1743730393734,1.1049,1810.8,1810.7,1.10494]
[1743730394039,4.3127,1810.8,1810.7,1.10494]
[1743730394240,1.10502,1810.6,1810.5,1.83682]
[1743730394532,1.82454,1811.1,1811.0,1.10478]
[1743730394739,1.10492,1810.8,1810.7,1.1049]
[1743730394935,1.10485,1810.9,1810.6,2.76256]
[1743730395239,1.10493,1810.8,1810.7,1.10492]
[1743730395834,2.58209,1810.9,1810.8,1.1049]
[1743730396232,1.10492,1810.8,1810.7,1.10491]
[1743730396636,2.58208,1810.9,1810.8,1.1049]
[1743730396939,1.10496,1810.8,1810.7,1.10495]
[1743730397135,4.31276,1810.8,1810.7,1.10495]
[1743730397734,1.10496,1810.8,1810.7,1.10495]
[1743730398835,1.10499,1810.7,1810.6,1.10495]
[1743730400129,1.10499,1810.7,1810.5,0.7318]
[1743730400338,1.10502,1810.6,1810.5,1.83683]
[1743730400540,1.10508,1810.5,1810.4,3.9213]
[1743730400738,1.1052,1810.4,1810.2,9.936]
[1743730401044,1.1052,1810.4,1810.3,1.10519]
[1743730401733,2.59376,1810.5,1810.4,1.10514]
[1743730401933,4.32111331,1810.6,1810.5,1.10508]
[1743730402132,0.00826331,1810.6,1810.5,1.10508]
[1743730402330,4.32108331,1810.6,1810.5,1.10508]
[1743730402533,1.11328331,1810.6,1810.5,1.10508]
[1743730402743,1.10508,1810.5,1810.4,0.7456]
[1743730403040,1.10508,1810.5,1810.4,1.85074]
[1743730403240,0.00826331,1810.6,1810.5,1.10508]
[1743730403435,1.11328331,1810.6,1810.5,1.10508]
[1743730404246,0.00826331,1810.6,1810.5,1.10508]
[1743730405748,1.11328331,1810.6,1810.5,1.10508]
[1743730406339,0.00826331,1810.6,1810.5,1.10508]
[1743730406544,1.11328331,1810.6,1810.5,1.10508]
[1743730406845,0.00826331,1810.6,1810.5,1.10508]
[1743730407047,1.11328331,1810.6,1810.5,1.10508]
[1743730408648,1.10508,1810.5,1810.4,1.85071]
[1743730409349,1.11333331,1810.6,1810.5,1.10508]
[1743730410140,1.11333331,1810.6,1810.5,2.62578]
[1743730410341,0.00826331,1810.6,1810.5,2.62578]
[1743730411050,1.11328331,1810.6,1810.5,1.5207]
[1743730411352,1.11328331,1810.6,1810.5,2.62578]
[1743730411543,1.11328331,1810.6,1810.5,1.5207]
[1743730411851,1.11328331,1810.6,1810.5,2.62578]
[1743730412345,0.00826331,1810.6,1810.5,2.62578]
[1743730413950,1.11328331,1810.6,1810.5,2.62578]
[1743730414556,0.00826331,1810.6,1810.5,2.62578]
[1743730414750,1.11328331,1810.6,1810.5,2.62578]
[1743730415455,0.00826331,1810.6,1810.5,2.62578]
[1743730415655,1.10475,1811.1,1811.0,1.10472]
[1743730415864,1.10485,1811.0,1810.9,1.10481]
[1743730416351,1.10484,1810.9,1810.8,3.27596]
[1743730416861,1.10484,1810.9,1810.8,3.276]
[1743730417960,9.45889331,1811.0,1810.9,1.10484]
[1743730418161,9.45889331,1811.0,1810.9,2.56444]
[1743730418361,9.45889331,1811.0,1810.9,1.4596]
[1743730418661,9.45889331,1811.0,1810.9,2.56444]
[1743730419263,1.10484,1810.9,1810.8,1.80164]
[1743730419457,1.1049,1810.8,1810.7,0.00826331]
[1743730419755,1.1049,1810.8,1810.7,1.49706331]
[1743730420060,1.1049,1810.8,1810.7,2.60202331]
[1743730421653,1.1049,1810.8,1810.7,1.49706331]
[1743730422856,8.3082,1810.8,1810.7,0.00826331]
[1743730423061,9.11072237,1810.8,1810.7,1e-08]
[1743730423363,9.11071999,1810.8,1810.7,1e-08]
[1743730423958,9.11072059,1810.8,1810.7,1e-08]
[1743730424166,9.0188,1810.8,1810.7,1e-08]
[1743730424863,6.5188,1810.8,1810.7,1e-08]
[1743730429565,6.61071214,1810.8,1810.7,1e-08]
[1743730429762,9.11071214,1810.8,1810.7,1e-08]
[1743730431870,9.0188,1810.8,1810.7,1e-08]
[1743730432868,6.5188,1810.8,1810.7,1e-08]
[1743730433068,6.5188,1810.8,1810.7,1.44540001]
[1743730433568,8.7023,1810.8,1810.7,1.44540001]
[1743730440280,7.9917,1810.8,1810.7,1.44540001]
[1743730440580,7.9827,1810.8,1810.7,2.18570001]
[1743730442075,7.9827,1810.8,1810.7,1.44540001]
[1743730442276,10.2071,1810.8,1810.7,1.44540001]
[1743730443077,1.1049,1810.8,1810.7,2.55036001]
[1743730443283,4.7749,1810.9,1810.8,1.1049]
[1743730443477,3.67,1810.9,1810.8,1.8132]
[1743730443787,0.00826331,1811.0,1810.9,1.10484]
[1743730443982,0.00826331,1811.0,1810.9,2.57594]
[1743730444185,0.00826331,1811.0,1810.9,5.07594]
[1743730445692,1.11304331,1811.0,1810.9,1.4711]
[1743730446090,4.78604331,1811.0,1810.9,2.57594]
[1743730446589,3.68126331,1811.0,1810.9,2.57594]
[1743730446985,4.78604331,1811.0,1810.9,2.57594]
[1743730447386,3.68126331,1811.0,1810.9,2.57594]
[1743730447790,0.00826331,1811.0,1810.9,2.57594]
[1743730448091,1.11304331,1811.0,1810.9,2.57594]
[1743730448491,6.8828,1811.6,1811.5,1.10444]
[1743730448695,6.8828,1811.6,1811.1,5.97]
[1743730448989,1.10459,1811.3,1811.2,2.57401]
[1743730449491,1.10459,1811.3,1811.2,1.4694]
[1743730449991,1.10472,1811.1,1811.0,0.7094]
[1743730450188,1.10478,1811.0,1810.9,1.442]
[1743730450490,4.78978,1811.0,1810.9,2.54684]
[1743730451086,8.90088,1811.2,1810.9,3.942]
[1743730451087,3.685,1811.2,1810.9,3.942]
[1743730451390,1.10478,1811.1,1811.0,1.442]
[1743730451991,1.10478,1811.1,1811.0,2.54678]
[1743730452689,1.10478,1811.1,1811.0,1.442]
[1743730454787,2.50888,1811.1,1811.0,1.442]
[1743730455685,1.10478,1811.1,1811.0,1.442]
[1743730459594,1.10484,1810.9,1810.8,3.0028]
[1743730459992,4.78084,1810.9,1810.8,3.0028]
[1743730461099,4.78084,1810.9,1810.8,4.1077]
[1743730463209,1.10484,1810.9,1810.8,4.1077]
[1743730464900,1.10473,1811.2,1811.1,1.10467]
[1743730465499,1.10473,1811.2,1811.1,1.80587]
[1743730466603,1.10464,1811.3,1811.2,1.10465]
[1743730466807,1.10464,1811.3,1811.2,3.30515]
[1743730470002,4.32061331,1811.4,1811.3,1.10459]
[1743730470307,1.11279331,1811.4,1811.3,2.48239]